[Event "CCT Julius Baer-D1-Place 2024"]
[Site "Online"]
[Date "2024.09.26"]
[Round "1"]
[White "Oparin, Grigoriy"]
[Black "Fedoseev, Vladimir"]
[Result "0-1"]
[ECO "E06"]
[WhiteElo "2662"]
[BlackElo "2692"]
[Annotator "TA"]
[PlyCount "110"]
[EventDate "2024.09.25"]
[EventType "swiss"]
[EventCountry "NET"]
[SourceTitle "playchess.com"]
[Source "ChessBase"]
[SourceQuality "1"]
[TimeControl "600+2"]

{[%evp 12,110,70,62,94,105,90,62,42,16,26,18,18,10,36,32,44,40,46,43,31,-25,-22,0,-13,-21,0,-21,-13,-44,-41,-45,-46,-38,-27,-54,-44,-43,-48,-117,-33,-315,-296,-275,-295,-306,-271,-291,-293,-292,-267,-286,-225,-263,-210,-219,0,-10,0,-9,0,0,0,-100,0,-51,0,0,0,0,0,0,0,0,0,0,0,0,0,0,0,-7,-8,-229,-229,-316,-316,-307,-321,-375,-88,-29985,-29986,-29985,-29986,-29986,-29987,-29987,-29988,-29988,-29988]} 1. Nf3 {[%emt 0:00:02]} d5 {[%emt 0:00:05]} 2. g3 {[%emt 0:00:01]} Nf6 {[%emt 0:00:01]} 3. Bg2 {[%emt 0:00:01]} e6 {[%emt 0:00:01]} 4. O-O {[%emt 0:00:02]} Be7 {[%emt 0:00:00]} 5. c4 {[%emt 0:00:01]} O-O {[%emt 0:00:02]} 6. b3 {[%emt 0:00:05]} Nc6 {[%emt 0:00:33]} 7. d4 {[%emt 0:00:15] White has a strong center, and piece development is almost complete. Black is solid but needs to decide on the best defensive setup for the middle game. Castling for White is a good option if not already done.} Ne4 {[%emt 0:00:04] E06: Gesloten Catalaans: Vroege afwijkingen.} 8. Bb2 {[%emt 0:00:06]} b6 {[%emt 0:00:02]} 9. cxd5 {[%emt 0:00:18] Onnauwkeurig} exd5 {[%emt 0:00:03] White has strong central control and is slightly better. Black needs to defend carefully, especially their d5 pawn. Moving the knight or bishop can help relieve the pressure. Wit staat iets beter.} 10. Nc3 $146 {[%emt 0:00:01] Onnauwkeurig} ({Predecessor:} 10. Nbd2 Bf5 11. Rc1 Qd7 12. Ne5 Nxe5 13. dxe5 Rad8 14. Nxe4 dxe4 15. Qxd7 Rxd7 16. Rfd1 {½-½ Detrick,E-Hall,J (1630) USA WS/15WM33 email 2015}) 10... Nxc3 {[%emt 0:00:59] White is slightly better. Black needs to defend against the strong knight on e4, and consider castling queenside. OK} 11. Bxc3 {[%emt 0:00:01]} Bf5 {[%emt 0:00:02] White has a slight advantage. Black needs to defend carefully, possibly by developing the knight or castling to improve king safety. Stopt Qc2. Beste} 12. Qd2 {[%emt 0:00:24] White has a good position with control over the center and potential for attacking on the kingside. Developing the knight to e5 or exchanging bishops on f6 could be interesting moves. Black needs to be cautious and defend accurately.} Qd7 {[%emt 0:00:58] White is slightly better. Black should finish development and consider castling to improve their position. Onnauwkeurig} 13. b4 {[%emt 0:00:39] OK} b5 {[%emt 0:00:38][%cal Oa7a5]} 14. Ne5 {[%emt 0:01:22] White has a slight advantage due to better pawn structure and more active pieces. Consider developing the dark-squared bishop or placing a rook on the open file.} Nxe5 {[%emt 0:01:14] OK} 15. dxe5 {[%emt 0:00:01][%cal Rd2d5]} Be6 {[%emt 0:00:02][%cal Oa7a5]} 16. Rfc1 {[%emt 0:00:15] [#] Fout (0.6)} (16. a3 $14) 16... a5 $1 $11 {[%emt 0:00:39] White has a clear advantage, putting Black under pressure. Black needs to focus on consolidating their position, perhaps by developing pieces and looking to exchange to relieve some tension. Briljant} 17. a3 {[%emt 0:00:06] Beste} ({Verwerp} 17. bxa5 c5 18. Bb2 b4 $17) 17... axb4 {[%emt 0:00:13] Beste (Gemakkelijk)} 18. axb4 {[%emt 0:01:19] White is better. Black’s pieces are passive, White's light-square bishop is very strong, and the pressure on Black’s queenside is significant.} Ra4 {[%emt 0:00:14] White is slightly better. Black needs to defend solidly. Bishop d8 could be a good move.} 19. Rd1 {[%emt 0:00:02]} Rd8 {[%emt 0:00:13][%cal Od5d4] White is slightly better. Black needs to defend solidly. Consider moving the queen or rook to add pressure. Zwart wil ...d4! spelen.} 20. e3 {[%emt 0:00:21] Onnauwkeurig} c6 {[%emt 0:00:27] OK} 21. h4 {[%emt 0:00:49]} h5 {[%emt 0:00:21] White is better. Black needs to defend carefully, especially the d5 pawn. Controlling the center and avoiding weaknesses would be important.} 22. Rdc1 {[%emt 0:01:54] OK} Rda8 {[%emt 0:00:11]} 23. Qd1 {[%emt 0:00:15] White is slightly better. The e5 pawn and active pieces offer good attacking chances. Black needs to defend carefully. Nd4 would be a good move. Onnauwkeurig} Bg4 {[%emt 0:00:17] White is slightly better. Black needs to defend solidly. Trading queens might ease the pressure.} (23... Bxb4 $2 {verliest.} 24. Bxb4 (24. Qxh5 Bxc3 25. Rxa4 bxa4 $19) 24... Bf5 25. Bc3 $18) 24. Qd4 {[%emt 0:00:01] OK} Bf8 {[%emt 0:00:44] OK} 25. Bd2 {[%emt 0:00:14] Fout (0.7)} (25. Rab1 $15) 25... Qb7 {[%emt 0:00:18] Fout (0.8)} (25... Be6 $17 {[%cal Oc6c5] En nu zou ...c5! winnen.} 26. Qb2 g6) 26. e4 $2 {[%emt 0:00:16][%mdl 8192] [#] Verliest partij (2.8)} (26. Rab1 $15) 26... c5 $1 $19 {[%emt 0:00:05][%mdl 512] OK} 27. Qb2 {[%emt 0:00:11] White is winning. The black king is exposed, and White has strong attacking possibilities. Qxd5 should be considered. OK} dxe4 {[%emt 0:00:10][%cal Rc5b4]} (27... cxb4 28. exd5 Rxa1 29. Rxa1 $11) 28. bxc5 {[%emt 0:00:33] White is better. Black's a4 rook and e4 pawn are weak. White can target these weaknesses, possibly starting with bxc5 or even Qd4. OK} Rxa1 {[%emt 0:00:02] OK} 29. Rxa1 {[%emt 0:00:00] White has a strong position with attacking chances, especially using the g2 and f3 pawns. Qxb5 looks good. Black needs to defend carefully.} Rxa1+ {[%emt 0:00:04]} (29... Bxc5 30. Rxa8+ Qxa8 31. Qxb5 Qa1+ 32. Qf1 Qxe5 33. Qc1 $17) 30. Qxa1 {[%emt 0:00:00] Black is winning. White's position is too compromised, and defending is extremely difficult.} Bxc5 {[%emt 0:00:01] Hoopt vervolgens op ...b4. OK} 31. Qe1 {[%emt 0:00:03][%cal Rg2e4] White has a significant advantage. Black's king is exposed, and White's e-pawn can become a strong passed pawn with correct play. Black needs to find defensive resources.} Bf3 {[%emt 0:00:18]} 32. Bxf3 {[%emt 0:00:20] White is significantly better. Black's king is exposed, and White has better piece activity. A good move would be to play the e5 pawn forward or make a tactical decision based on Black's weak king and potential threats. OK} exf3 {[%emt 0:00:02][%mdl 4096] Eindspel. KQB-KQB} 33. e6 {[%emt 0:00:00] White is winning. Black's pieces are passive, and White can create threats with moves like e6 or Qe4. Beste} Qd5 $2 {[%emt 0:00:20] White is significantly better. Black needs to defend carefully, especially against threats to the f7-pawn and ideas involving Qe5. Gemiste overwinning (2.1)} ({Zwart zou moeten proberen} 33... Qe7 $1 $19 {[%cal Re7e6]} 34. Qe5 Qxe6 35. Qb8+ (35. Qxc5 {Leidt naar mat.} Qh3) 35... Kh7 36. Qxb5 Qd6) 34. Bb4 $1 $11 {[%emt 0:00:49] Sterk} ({Maar niet} 34. e7 $2 Bxe7 35. Qc1 (35. Qxe7 $2 Qxd2 36. Qe8+ Kh7 $17) 35... Bc5 $19) 34... Bxb4 {[%emt 0:00:21] OK} 35. exf7+ {[%emt 0:00:00] Beste (Gemakkelijk)} Kxf7 {[%emt 0:00:17] Black needs to defend carefully. White is pushing with connected passers on the kingside. Black's b4 bishop is well-placed, but the pawns and the queen must coordinate accurately to prevent promotion threats.} 36. Qxb4 {[%emt 0:00:00] KQ-KQ. OK} Ke6 {[%emt 0:00:05]} 37. Qf8 {[%emt 0:00:07] [#] Fout (1.0)} (37. Qc3 $1 $11 {was de enige mogelijkheid om het evenwicht te handhaven.}) 37... Qd1+ {[%emt 0:00:08] Fout (0.5)} ({Beter is} 37... Qb7 $1 $17) 38. Kh2 $15 {[%emt 0:00:01] White is winning, Black should prepare for checkmate. Onnauwkeurig} Qe2 {[%emt 0:00:01] Black is in a difficult position. White is threatening mate. Black should try perpetual check. Fout (0.5)} ({Zwart zou moeten spelen} 38... Qd4 $15 39. Qc8+ Kd5 40. Qf5+ Kc4 41. Qxf3 b4) 39. Qc5 $1 $11 {[%emt 0:00:08] Sterk} g6 {[%emt 0:00:05]} 40. Kg1 {[%emt 0:00:14]} Qd1+ {[%emt 0:00:11] White is winning. Black's position is very difficult to hold due to the advanced queenside pawn and imminent threats from White.} 41. Kh2 {[%emt 0:00:01]} Qd5 {[%emt 0:00:02]} 42. Qb6+ {[%emt 0:00:02] OK} Kf5 {[%emt 0:00:02] White is winning. Black's king is highly exposed, and White has a dangerous passed pawn on the h-file.} 43. Qe3 {[%emt 0:00:01] Voorkomt g5. OK} Kf6 {[%emt 0:00:16] White is winning. Black is down significant material and has passive positioning. OK} 44. Qb6+ {[%emt 0:00:01] OK} Kf7 {[%emt 0:00:06]} 45. Qc7+ {[%emt 0:00:01]} Ke6 {[%emt 0:00:13] Wit zou ...b4 moeten voorkomen.} 46. Qb6+ {[%emt 0:00:01] White is much better. Black's king is exposed, and White has powerful pieces to exploit this advantage. Beste (Gemakkelijk)} Kd7 {[%emt 0:00:03] OK} 47. Qxg6 $2 {[%emt 0:00:05] Verliest partij (2.2)} (47. Kg1 $1 $11 {es Wit is oké.}) 47... b4 $19 {[%emt 0:00:02] White is winning. Black's king is exposed and White's two queens dominate the position. Beste (Gemakkelijk)} 48. Qg7+ {[%emt 0:00:05] Onnauwkeurig} Kc6 {[%emt 0:00:02] Beste (Gemakkelijk)} 49. g4 {[%emt 0:00:01]} Qd6+ {[%emt 0:00:07] White is much better, threatening mate with Qb7#. Black's only hope is to avoid immediate checkmate. OK} 50. Kh3 {[%emt 0:00:02] [#] White is winning. Black's king is exposed, and White has a decisive material advantage with more active pieces.n} Qe6 $2 {[%emt 0:00:01] Gemiste overwinning (2.9)} (50... hxg4+ $1 $19 {en Zwart blijft duidelijk aan de top.} 51. Kxg4 Qd7+ 52. Kh5 (52. Qxd7+ $2 Kxd7 53. h5 Ke7 $19) 52... Qe6) 51. Qd4 $2 {[%emt 0:00:03][%mdl 8192] Verliest partij (Mat)} (51. Kg3 $17) 51... Qxg4+ {[%emt 0:00:09] Beste. Zwart zet mat.} 52. Qxg4 {[%emt 0:00:01] OK} hxg4+ {[%emt 0:00:00] White is winning. Black is unable to stop the pawn promotions or the checkmate threats with the queen and pawns.} 53. Kxg4 {[%emt 0:00:01]} b3 {[%emt 0:00:00]} 54. h5 {[%emt 0:00:00]} b2 {[%emt 0:00:01] White is winning. Black is struggling with advancing pawns. The h-pawn will be unstoppable.} 55. h6 {[%emt 0:00:00]} b1=Q {[%emt 0:00:01] White is winning. The pawn on h6 can promote soon, and Black's pawn on b2 and f3 are not enough to turn the game around.   Blunder waarde: Wit=0.40/Zwart=0.28 (precies) .  Verliest partij:   	Wit=3      	---        Gemiste overwinning: 	---       	Zwart=2      Fout:        	Wit=3      	Zwart=3      Onnauwkeurig:    	Wit=6      	Zwart=1      OK:         	Wit=11     	Zwart=11     Beste:        	Wit=4      	Zwart=5      Sterk:        	Wit=2      	---        Briljant:      	---       	Zwart=1} ({Niet} 55... b1=B 56. Kxf3 (56. h7 Bxh7 57. Kxf3 Kd5 $17) 56... Kd5 (56... Bh7 57. Ke3 $11) 57. Ke3 $15) 0-1

[Event "CCT Julius Baer-D1-Place 2024"]
[Site "Online"]
[Date "2024.09.26"]
[Round "1"]
[White "Martinez Alcantara, Jose Eduardo"]
[Black "Nepomniachtchi, Ian"]
[Result "0-1"]
[ECO "B53"]
[WhiteElo "2607"]
[BlackElo "2755"]
[Annotator "TA"]
[PlyCount "128"]
[EventDate "2024.09.25"]
[EventType "swiss"]
[EventCountry "NET"]
[SourceTitle "playchess.com"]
[Source "ChessBase"]
[SourceQuality "1"]
[TimeControl "600+2"]

{[%evp 48,128,0,0,0,0,38,42,52,29,37,13,31,34,31,26,26,19,31,17,35,0,8,8,8,0,0,0,0,0,0,-20,-20,-16,-8,-14,-8,-16,-8,-8,-15,-15,11,-3,-8,-39,-34,-154,-125,-705,-689,-670,-639,-622,-598,-742,-746,-1001,-950,-930,-921,-1481,-1363,-1782,-1640,-5373,-5353,-4153,-4152,-4921,-4152,-4152,-4149,-4137,-4137,-29982,-29983,-29984,-29985,-29986,-29987,-29986,-29987]} 1. e4 {[%emt 0:00:02]} c5 {[%emt 0:00:04]} 2. Nf3 {[%emt 0:00:02]} d6 {[%emt 0:00:00]} 3. d4 {[%emt 0:00:12]} cxd4 {[%emt 0:00:04]} 4. Qxd4 {[%emt 0:00:00]} Nf6 {[%emt 0:00:02]} 5. h3 {[%emt 0:00:07]} Nc6 {[%emt 0:00:05]} 6. Qe3 {[%emt 0:00:01] B53: Sicilian: 2...d6: Lines with Qxd4.} g6 {[%emt 0:00:01]} 7. c4 {[%emt 0:00:12] Recently 7.Bc4 got a lot of attention.} Bg7 {[%emt 0:00:01]} 8. Nc3 {[%emt 0:00:02]} Nd7 $146 {[%emt 0:00:22]} ({Predecessor:} 8... O-O 9. Be2 Qb6 10. Qd2 Be6 11. Rb1 Nd7 12. b3 Nd4 13. Bb2 Nxf3+ 14. Bxf3 Ne5 {1-0 Nakamura,H (2802)-Martinez Alcantara,J (2612) Chess.com SpeedChess blitz 2024 (1.1)}) 9. Be2 {[%emt 0:00:21]} Qb6 {[%emt 0:00:29]} 10. Nd5 {[%emt 0:00:21]} Qxe3 {[%emt 0:00:03]} 11. Bxe3 {[%emt 0:00:00]} O-O {[%emt 0:00:01]} 12. O-O-O {[%emt 0:00:33]} Nf6 {[%emt 0:00:44]} 13. Bd3 {[%emt 0:00:30]} Bd7 {[%emt 0:00:11]} 14. Bg5 {[%emt 0:01:04]} Nxd5 {[%emt 0:00:31]} 15. cxd5 {[%emt 0:02:01]} Nb4 {[%emt 0:00:03]} 16. Bb1 {[%emt 0:00:00]} e6 {[%emt 0:01:26]} 17. a3 {[%emt 0:00:04]} Na6 {[%emt 0:00:03]} 18. Bc2 {[%emt 0:00:55]} Nc5 {[%emt 0:00:29]} 19. Kb1 {[%emt 0:00:18]} exd5 {[%emt 0:00:16]} 20. exd5 {[%emt 0:00:19]} Rfe8 {[%emt 0:00:09]} 21. Be3 {[%emt 0:00:06]} Rac8 {[%emt 0:00:13]} 22. Rhe1 {[%emt 0:00:06]} a5 {[%emt 0:00:15]} 23. Bf4 {[%emt 0:00:28]} Bf8 {[%emt 0:00:16]} 24. Nd4 {[%emt 0:00:49]} b5 {[%emt 0:00:05]} 25. Nc6 {[%emt 0:00:12]} a4 {[%emt 0:00:12]} 26. g4 {[%emt 0:00:03]} f6 {[%emt 0:00:14]} (26... Ne6 $5 27. Bxd6 (27. dxe6 Bxc6 28. exf7+ Kxf7 $11) 27... Bxc6 28. dxc6 (28. dxe6 Rxe6 29. Rxe6 fxe6 $11) 28... Rxc6 $11) 27. Nd4 {[%emt 0:00:18]} (27. Rxe8 {simplifies} Rxe8 28. Nd4 Ne4 29. Rf1) 27... Kf7 {[%emt 0:00:03]} 28. f3 {[%emt 0:00:03]} Rb8 {[%emt 0:00:40]} 29. Nc6 {[%emt 0:00:08]} (29. Rxe8 {simplifies} Rxe8 30. h4 Rb8 31. Ka2) 29... Rb6 {[%emt 0:00:19]} 30. Rxe8 {[%emt 0:00:19]} Bxe8 {[%emt 0:00:00]} 31. Nb4 {[%emt 0:00:11]} Bd7 {[%emt 0:00:03]} 32. h4 {[%emt 0:00:06]} Rb8 {[%emt 0:00:19]} 33. h5 {[%emt 0:00:03]} Re8 {[%emt 0:00:08]} 34. Rh1 {[%emt 0:00:13]} f5 {[%emt 0:00:23]} 35. hxg6+ {[%emt 0:00:03]} hxg6 {[%emt 0:00:00]} 36. gxf5 {[%emt 0:00:13]} Bxf5 {[%emt 0:00:00]} 37. Bxf5 {[%emt 0:00:01]} gxf5 {[%emt 0:00:01]} 38. Rh7+ {[%emt 0:00:28]} Kg6 {[%emt 0:00:42]} 39. Rc7 {[%emt 0:00:01]} Re1+ {[%emt 0:00:21]} 40. Kc2 {[%emt 0:00:02]} Re2+ {[%emt 0:00:01]} 41. Kb1 {[%emt 0:00:06]} Bg7 {[%emt 0:00:10]} (41... Rf2 $5 42. Bxd6 Bxd6 $11) 42. Bxd6 {[%emt 0:00:09]} Rxb2+ {[%emt 0:00:21]} 43. Kc1 {[%emt 0:00:01]} Nb3+ {[%emt 0:00:01]} 44. Kd1 {[%emt 0:00:00]} Rd2+ {[%emt 0:00:54]} 45. Ke1 {[%emt 0:00:01]} Bf6 {[%emt 0:00:00]} 46. Bg3 {[%emt 0:00:14]} f4 {[%emt 0:00:11]} 47. Bf2 {[%emt 0:00:02]} (47. Bxf4 $15 Bh4+ 48. Kf1 Rf2+ 49. Kg1) 47... Bb2 {[%emt 0:00:06]} 48. Rc2 $2 {[%emt 0:00:04][%mdl 8192]} (48. Rb7 $17) 48... Bxa3 $19 {[%emt 0:00:03]} 49. Rc6+ {[%emt 0:00:03]} Kf5 {[%emt 0:00:02]} 50. Nc2 {[%emt 0:00:00]} Bb2 {[%emt 0:00:05]} 51. Nb4 {[%emt 0:00:03]} a3 {[%emt 0:00:07]} 52. Kf1 {[%emt 0:00:01]} Bd4 {[%emt 0:00:09]} 53. Be1 {[%emt 0:00:04]} a2 {[%emt 0:00:06]} ({Inferior is} 53... Bc5 54. Rxc5 a2 55. Nxa2 (55. Rxb5 a1=Q 56. d6+ Ke6) 55... Rxa2 56. Rc8 $11) 54. Ra6 {[%emt 0:00:03]} a1=Q {[%emt 0:00:02]} ({Not} 54... a1=B 55. Bxd2 Nxd2+ 56. Ke2 $17) 55. Rxa1 {[%emt 0:00:00]} Bxa1 {[%emt 0:00:01]} 56. Bxd2 {[%emt 0:00:01]} Nxd2+ {[%emt 0:00:00]} 57. Ke2 {[%emt 0:00:00]} Nc4 {[%emt 0:00:02]} 58. Nc6 {[%emt 0:00:01]} Nd6 {[%emt 0:00:03]} 59. Kd3 {[%emt 0:00:01]} Bf6 {[%emt 0:00:01]} 60. Kc2 {[%emt 0:00:01]} Nc4 {[%emt 0:00:04]} 61. Kb3 {[%emt 0:00:00]} Nd2+ {[%emt 0:00:01]} 62. Kb4 {[%emt 0:00:01]} Nxf3 {[%emt 0:00:00]} 63. d6 {[%emt 0:00:01]} Nd4 {[%emt 0:00:02]} 64. Ne7+ {[%emt 0:00:03]} Bxe7 {[%emt 0:00:01]} 0-1

[Event "CCT Julius Baer-D1-Place 2024"]
[Site "Online"]
[Date "2024.09.26"]
[Round "1"]
[White "Le, Tuan Minh"]
[Black "Carlsen, Magnus"]
[Result "1/2-1/2"]
[ECO "E21"]
[WhiteElo "2564"]
[BlackElo "2832"]
[Annotator "TA"]
[PlyCount "65"]
[EventDate "2024.09.25"]
[EventType "swiss"]
[EventCountry "NET"]
[SourceTitle "playchess.com"]
[Source "ChessBase"]
[SourceQuality "1"]
[TimeControl "600+2"]

{[%evp 9,65,18,24,12,16,13,14,12,23,0,17,0,0,-18,-22,-35,-33,-36,-32,-35,-34,-61,-63,-57,-53,-54,-41,-39,-39,-46,-36,-36,-46,-43,-53,-39,-41,-50,-40,-59,-52,-41,-39,-43,0,0,0,0,276,0,0,0,0,0,0,0,0,0]} 1. d4 {[%emt 0:00:05]} Nf6 {[%emt 0:00:06]} 2. c4 {[%emt 0:00:01]} e6 {[%emt 0:00:04]} 3. Nc3 {[%emt 0:00:02]} Bb4 {[%emt 0:00:02]} 4. Nf3 {[%emt 0:00:01]} Bxc3+ {[%emt 0:00:18]} 5. bxc3 {[%emt 0:00:02]} d6 {[%emt 0:00:01]} 6. Qc2 {[%emt 0:00:01]} Qe7 {[%emt 0:00:08]} 7. e4 {[%emt 0:00:21]} e5 {[%emt 0:00:02]} 8. Bd3 {[%emt 0:00:01][%cal Oc4c5]} Nc6 {[%emt 0:00:11]} 9. d5 {[%emt 0:00:32]} Nb8 {[%emt 0:00:01]} 10. O-O {[%emt 0:00:13][%cal Oc4c5]} Nbd7 {[%emt 0:00:03]} 11. h3 {[%emt 0:00:23]} Nc5 {[%emt 0:00:03]} 12. Be3 {[%emt 0:00:01]} Nxd3 {[%emt 0:00:19]} 13. Qxd3 {[%emt 0:00:00][%cal Oc4c5]} b6 {[%emt 0:00:02]} 14. Nd2 {[%emt 0:00:01]} Nd7 {[%emt 0:00:08]} 15. f4 {[%emt 0:00:04]} exf4 $1 {[%emt 0:00:04]} 16. Rxf4 {[%emt 0:00:00]} O-O {[%emt 0:00:14]} 17. Bd4 {[%emt 0:00:02]} Ne5 {[%emt 0:00:18]} 18. Bxe5 {[%emt 0:00:48]} Qxe5 {[%emt 0:00:02]} 19. Qe3 {[%emt 0:00:03]} Bd7 {[%emt 0:00:12]} 20. Nf3 {[%emt 0:00:18][%cal Bd2f3,Bf3e1,Be1d3,Bd3e5,Be5d7][%mdl 32]} Qe7 {[%emt 0:00:01]} 21. e5 {[%emt 0:01:14]} Rae8 {[%emt 0:00:57]} 22. Re1 {[%emt 0:00:23]} dxe5 {[%emt 0:00:01]} 23. Qxe5 {[%emt 0:00:04]} (23. Nxe5 f6 24. Nxd7 Qxe3+ 25. Rxe3 Rxe3 26. Nxf8 Kxf8 $17) 23... Qd6 {[%emt 0:00:28]} 24. Qd4 {[%emt 0:00:56]} Rxe1+ {[%emt 0:00:04]} (24... h6 {vereinfacht} 25. Rxe8 Rxe8 26. Re4 Rxe4 27. Qxe4 Qg3) 25. Nxe1 {[%emt 0:00:02]} Re8 {[%emt 0:00:05]} (25... c5 {vereinfacht} 26. dxc6 Qxc6 27. Nd3 Qc7) 26. Nd3 {[%emt 0:00:03]} Qg6 {[%emt 0:01:19]} 27. Ne5 {[%emt 0:00:28]} Qg3 {[%emt 0:00:02] [#] Und jetzt ...Qe1+ wäre schön.} (27... Qd6 28. Nxf7 Qe7 29. d6 Qe1+ 30. Rf1) 28. Nxd7 {[%emt 0:00:47]} Re1+ {[%emt 0:00:02]} 29. Rf1 {[%emt 0:00:01]} Re2 {[%emt 0:00:02][%csl LRa2,LRg2] Pariert Qf2. Die Stellung ist ausgeglichen.} 30. Rf2 {[%emt 0:00:04]} Re1+ {[%emt 0:00:01]} 31. Rf1 {[%emt 0:00:01]} Re2 {[%emt 0:00:00][%csl LRa2,LRg2]} 32. Rf2 {[%emt 0:00:12]} Re1+ {[%emt 0:00:01]} 33. Rf1 {[%emt 0:00:01] Gewichteter Fehlerwert: Weiß=0.07 (makellos) /Schwarz=0.05 (makellos) .  Gewinn verpasst:   	Weiß=1     	---        Ungenau:       	Weiß=1     	Schwarz=1     OK:         	Weiß=10    	Schwarz=16    Bester:       	Weiß=3     	---        Stark:        	---       	Schwarz=1} 1/2-1/2